fUST/lending_fUST_20250829
["ID","MTS","AMOUNT","RATE_DAILY","PERIOD"]
[381988750,1756465038195,-200.0,0.00044,120]
[381988751,1756465038242,-200.0,0.00044,120]
[381988752,1756465038298,-361.96275663,0.000442,120]
[381988753,1756465038350,-160.0,0.00044216,7]
[381988754,1756465038400,-1451.23,0.00044383,120]
[381988755,1756465038451,-160.0,0.00044813,8]
[381988756,1756465038500,-1451.23,0.00044931,120]
[381988757,1756465038545,-198.13391488,0.00045,120]
[381988758,1756465038587,-1003.76135322,0.00045,120]
[381988759,1756465038629,-1000.0,0.00045,120]
[381988760,1756465038659,-200.0,0.00045,120]
[381988761,1756465038687,-597.23202091,0.00045,120]
[381988762,1756465038716,-210.6156,0.000452,120]
[381988763,1756465038744,-1042.43108,0.000452,120]
[381988764,1756465038773,-242.43108,0.000452,120]
[381988765,1756465038800,-160.0,0.00045409,9]
[381988766,1756465038837,-200.0,0.00045431,120]
[381988767,1756465038868,-1451.23,0.00045479,120]
[381988768,1756465038896,-160.0,0.00046006,10]
[381988769,1756465038926,-1451.23,0.00046027,120]
[381988770,1756465039156,-1451.23,0.00046575,120]
[381988771,1756465039185,-160.0,0.00046602,11]
[381988772,1756465039215,-678.47,0.00046773,30]
[381988773,1756465039245,-286.0566804,0.00046788,30]
[381988774,1756465039273,-2000.0,0.00047,120]
[381988775,1756465039303,-1000.0,0.00047,120]
[381988776,1756465039333,-199.0,0.000471,120]
[381988777,1756465039361,-403.15,0.000471,7]
[381988778,1756465039389,-1451.23,0.00047123,120]
[381988779,1756465039417,-160.0,0.00047199,12]
[381988780,1756465039444,-1042.43108,0.000472,120]
[381988781,1756465039471,-155.0,0.000472,120]
[381988782,1756465039497,-658071.17813229,0.0004744,30]
[381988783,1756465056653,-417.15472785,0.00027,7]
[381988784,1756465056684,-5000.0,0.00030128,60]
[381988785,1756465056714,-227.42,0.00035475,10]
[381988786,1756465056743,-480.0,0.00035616,10]
[381988787,1756465056772,-480.0,0.0003589,10]
[381988788,1756465056800,-480.0,0.00036164,10]
[381988789,1756465056829,-480.0,0.00036438,10]
[381988790,1756465056860,-480.0,0.00036712,10]
[381988791,1756465056889,-480.0,0.00036712,10]
[381988792,1756465056918,-480.0,0.00036986,10]
[381988793,1756465056946,-480.0,0.00036986,10]
[381988794,1756465056974,-480.0,0.0003726,10]
[381988795,1756465057002,-480.0,0.00037534,10]
[381988796,1756465057029,-480.0,0.00037808,10]
[381988797,1756465057057,-282.64998021,0.00038082,10]
[381988798,1756465057085,-480.0,0.00039726,10]
[381988799,1756465057112,-480.0,0.0004,10]
[381988800,1756465057141,-417.15472785,0.0004,10]
[381988801,1756465057169,-417.15472785,0.0004,120]
[381988802,1756465057201,-480.0,0.00040273,10]
[381988803,1756465057229,-457.55282153,0.00040547,10]
[381988804,1756465057256,-225.0,0.00041,90]
[381988805,1756465057284,-225.0,0.0004137,90]
[381988806,1756465057312,-225.0,0.00043151,90]
[381988807,1756465057341,-1099604.30186771,0.0004744,30]
[381988808,1756465057368,-174.5,0.000475,14]
[381988809,1756465057396,-1451.23,0.00047671,120]
[381988810,1756465057422,-160.0,0.00047795,13]
[381988811,1756465057449,-150.40127554,0.00048,120]
[381988812,1756465057475,-6000.0,0.00048,30]
[381988813,1756465057501,-100011.34792502,0.00048,120]
[381988814,1756465057529,-423.29549189,0.00048,60]
[381988815,1756465057555,-160.0,0.00048,30]
[381988816,1756465057583,-160.0,0.00048,30]
[381988817,1756465057678,-232.6790651,0.00048,30]
[381988818,1756465057707,-845.57753514,0.00048,30]
[381988819,1756465057735,-417.15472785,0.00048,30]
[381988820,1756465057768,-1532.92803689,0.000481,120]
[381988821,1756465057798,-1451.23,0.00048219,120]
[381988822,1756465057825,-160.0,0.00048392,14]
[381988823,1756465057854,-1451.23,0.00048767,120]
[381988824,1756465057881,-160.0,0.00048989,15]
[381988825,1756465057907,-725.0,0.00049,120]
[381988826,1756465057934,-1293.09,0.000491,10]
[381988827,1756465057962,-1042.43108,0.000492,120]
[381988828,1756465057988,-500.0,0.00049251,30]
[381988829,1756465058013,-1451.23,0.00049315,120]
[381988830,1756465058041,-150.184235,0.00049372,7]
[381988831,1756465058067,-152.802298,0.00049372,7]
[381988832,1756465058095,-6120.78961387,0.000494,120]
[381988833,1756465058122,-232.6790651,0.000494,120]
[381988834,1756465058153,-160.0,0.00049585,16]
[381988835,1756465058183,-1451.23,0.00049863,120]
[381988836,1756465058211,-1000.0,0.0005,120]
[381988837,1756465058239,-99999.999999,0.0005,120]
[381988838,1756465058266,-323.01224051,0.0005,120]
[381988839,1756465058294,-530.36717988,0.0005,10]
[381988840,1756465058321,-199.0,0.0005,7]
[381988841,1756465058351,-1000.0,0.0005,120]
[381988842,1756465058378,-1520.0,0.0005,120]
[381988843,1756465058406,-400.012129,0.0005,120]
[381988844,1756465058436,-235.67049105,0.0005,120]
[381988845,1756465058466,-2008.04,0.0005,120]
[381988846,1756465058494,-100000.00010545,0.0005,30]
[381988847,1756465058521,-160.0,0.0005,7]
[381988848,1756465058550,-232.6790651,0.0005,7]
[381988849,1756465058578,-160.0,0.00050182,17]
[381988850,1756465058606,-208.0,0.0005028,30]
[381988851,1756465058634,-403.15,0.000503,7]
[381988852,1756465058662,-155.0,0.000504,120]
[381988853,1756465058691,-1451.23,0.0005041,120]
[381988854,1756465058719,-2000.0,0.000505,120]
[381988855,1756465058746,-160.0,0.00050778,18]
[381988856,1756465058774,-1451.44345234,0.00050958,120]
[381988857,1756465058802,-1000.0,0.00051,120]
[381988858,1756465058829,-3000.0,0.00051,85]
[381988859,1756465058856,-3000.0,0.0005101,85]
[381988860,1756465058884,-3000.0,0.0005102,85]
[381988861,1756465058911,-3000.0,0.0005103,85]
[381988862,1756465058938,-3000.0,0.0005104,85]
[381988863,1756465058965,-3000.0,0.0005105,85]
[381988864,1756465058992,-3000.0,0.0005106,85]
[381988865,1756465059018,-3000.0,0.0005107,85]
[381988866,1756465059045,-3162.427821,0.0005108,85]
[381988867,1756465059072,-174.5,0.000511,14]
[381988868,1756465059099,-2264.10087164,0.00051173,58]
[381988869,1756465059125,-1042.43116,0.000512,120]
[381988870,1756465059158,-160.0,0.00051375,19]
[381988871,1756465059186,-409.0,0.00051442,120]
[381988872,1756465059213,-2000.0,0.000515,120]
[381988873,1756465059241,-291.40064,0.000516,120]
[381988874,1756465059268,-500.0,0.00051843,30]
[381988875,1756465059295,-200.0,0.0005189,120]
[381988876,1756465059327,-2600.0,0.00051964,60]
[381988877,1756465059362,-160.0,0.00051971,20]
[381988878,1756465059391,-1000.0,0.00052,120]
[381988879,1756465059420,-6551.63319408,0.00052,120]
[381988880,1756465059448,-1000.0,0.00052,120]
[381988881,1756465059482,480.0,0.0003726,10]
[381988882,1756465059517,580.01075268,0.00037534,10]
[381988883,1756465059547,225.0,0.00051781,120]
[381988884,1756465059585,225.0,0.00051349,120]
[381988885,1756465059616,225.0,0.00048329,90]
[381988886,1756465059650,235.0,0.00035475,10]
[381988887,1756465059683,1257.15435111,0.0005107,120]
[381988888,1756465059893,232.0,0.00045308,90]
[381988889,1756465070492,195.83,0.00035475,10]
[381988900,1756465292779,1426.0,0.00027397,120]
[381988906,1756465632136,-168.46392776,0.00019503,6]
[381988907,1756465753127,-249.37537172,0.00019502,2]
[381988908,1756465753148,-5000.0,0.00019699,2]
[381988909,1756465753170,-300.0,0.00019997,2]
[381988910,1756465753193,-1200.0,0.00019998,2]
[381988911,1756465753214,-1200.0,0.00019998,2]
[381988912,1756465753236,-4769.89108195,0.0002,2]
[381988913,1756465754092,-236.62297499,0.00019698,2]
[381988914,1756465754112,-236.62297496,0.00019749,2]
[381988915,1756465754131,-7192.10891805,0.0002,2]
[381988916,1756465754151,-500.0,0.0002,2]
[381988917,1756465754169,-500.0,0.0002,2]
[381988918,1756465754188,-500.0,0.0002,2]
[381988919,1756465754207,-500.0,0.0002,2]
[381988920,1756465754227,-248.90411133,0.0002,2]
[381988921,1756465754246,-500.0,0.0002,2]
[381988922,1756465754266,-500.0,0.0002,2]
[381988923,1756465754287,-190.572099,0.00020187,2]
[381988924,1756465754306,-166.58792084,0.00020548,2]
[381988925,1756465754328,-526.17971562,0.00020548,2]
[381988926,1756465754348,-2249.52495,0.000212,2]
[381988927,1756465754368,-1000.0,0.00021259,2]
[381988928,1756465754392,-931.79861632,0.00021661,2]
[381988929,1756465754418,-420.0,0.00021775,2]
[381988930,1756465754439,-1680.0,0.0002188,2]
[381988931,1756465754460,-200.53074167,0.00021918,2]
[381988932,1756465754484,-262.92,0.000221,2]
[381988933,1756465754517,236.62297496,0.00019799,2]
[381988934,1756465754634,236.62297496,0.0001985,2]
[381988935,1756465758527,175.28,0.000221,2]
[381988936,1756465762078,-587.0,0.0002371,2]
[381988937,1756465762099,-412.0,0.0002394,2]
[381988938,1756465765017,1844.11843172,0.00024069,2]
[381988939,1756465765226,236.62297496,0.000199,2]
[381988940,1756465803637,287.00862729,0.0002,2]
[381989384,1756465838698,-289.95786429,0.00024069,2]
[381989385,1756465838710,-2865.92370399,0.00024069,2]
[381989386,1756465838720,-232.6790651,0.00024312,2]
[381989387,1756465838729,-160.0,0.00024312,2]
[381989388,1756465838740,-160.0,0.00024312,2]
[381989389,1756465838750,-160.0,0.00024312,2]
[381989390,1756465838759,-186.0,0.00024475,2]
[381989391,1756465838768,-160.0,0.00024476,2]
[381989392,1756465838778,-845.57753514,0.00024476,2]
[381989393,1756465838787,-160.0,0.00024476,2]
[381989394,1756465838796,-160.0,0.00024476,2]
[381989395,1756465838807,-160.0,0.00024476,2]
[381989396,1756465838816,-380.0,0.00024658,2]
[381989397,1756465838826,-250.0,0.000249,2]
[381989398,1756465838837,-510.40924109,0.000249,2]
[381989399,1756465838846,-666.0,0.00025652,2]
[381989400,1756465838856,-643.310368,0.00025745,2]
[381989401,1756465838866,-576.242524,0.00025778,2]
[381989402,1756465838875,-397.28616418,0.00026044,2]
[381989403,1756465838885,-155.9,0.00026044,12]
[381989404,1756465838894,-1233.3069371,0.00026362,2]
[381989405,1756465838904,-164.815228,0.0002666,2]
[381989406,1756465838914,-190.572099,0.00026676,2]
[381989407,1756465838923,-154.84,0.00027395,7]
[381989408,1756465838933,-154.84,0.00027495,15]
[381989409,1756465838942,-154.84,0.00027595,15]
[381989410,1756465838952,-154.84,0.00027695,15]
[381989411,1756465838961,-154.84,0.00027795,15]
[381989412,1756465838971,-154.84,0.00027895,15]
[381989413,1756465838979,-154.84,0.00027995,15]
[381989414,1756465838988,-154.84,0.00028095,15]
[381989415,1756465838998,-154.84,0.00028195,15]
[381989416,1756465839008,-200.0,0.00028212,2]
[381989417,1756465839018,-154.84,0.00028295,15]
[381989418,1756465839027,-154.84,0.00028395,15]
[381989419,1756465839036,-154.84,0.00028495,15]
[381989420,1756465839046,-154.84,0.00028595,15]
[381989421,1756465839055,-154.84,0.00028695,15]
[381989422,1756465839064,-154.84,0.00028795,15]
[381989423,1756465839076,-154.84,0.00028895,15]
[381989424,1756465839085,-154.84,0.00028995,15]
[381989425,1756465839094,-500.0,0.00029089,2]
[381989426,1756465839105,-154.84,0.00029095,15]
[381989427,1756465839123,-154.84,0.00029195,15]
[381989428,1756465839133,-154.84,0.00029295,15]
[381989429,1756465839143,-154.84,0.00029395,15]
[381989430,1756465839152,-154.84,0.00029495,15]
[381989431,1756465839161,-154.84,0.00029595,15]
[381989432,1756465839170,-154.84,0.00029695,15]
[381989433,1756465839179,-154.84,0.00029795,15]
[381989434,1756465839188,-500.0,0.00029798,2]
[381989435,1756465839198,-154.84,0.00029895,15]
[381989436,1756465839207,-154.84,0.00029995,15]
[381989437,1756465839217,-154.84,0.00030095,15]
[381989438,1756465839227,-500.0,0.00030106,7]
[381989439,1756465839236,-402.5710281,0.00030128,4]
[381989440,1756465839246,-154.91814989,0.00030195,15]
[381989441,1756465839255,-500.0,0.00030624,7]
[381989442,1756465839265,-500.0,0.00030794,7]
[381989443,1756465839275,-500.0,0.00030909,7]
[381989444,1756465839285,-154.0,0.00031,120]
[381989445,1756465839295,-500.0,0.0003127,7]
[381989446,1756465839305,-162.6457,0.00031562,15]
[381989447,1756465839315,-500.0,0.0003185,7]
[381989448,1756465839326,-500.0,0.0003192,7]
[381989449,1756465839335,-500.0,0.00031939,7]
[381989450,1756465839343,-162.6457,0.0003225,15]
[381989451,1756465839353,-152.802298,0.0003225,15]
[381989452,1756465839363,-1056.24834409,0.00032283,4]
[381989453,1756465839372,-500.0,0.00032421,7]
[381989454,1756465839383,-500.0,0.00032429,7]
[381989455,1756465839393,-500.0,0.00032499,7]
[381989456,1756465839403,-500.0,0.00032583,7]
[381989457,1756465839413,-500.0,0.00032738,7]
[381989458,1756465839424,-500.0,0.00032796,7]
[381989459,1756465839434,-216.21406313,0.00032803,2]
[381989460,1756465839444,-217.30324474,0.00032803,2]
[381989461,1756465839453,-425.57542551,0.00032814,2]
[381989462,1756465839462,-13609.5504852,0.00033075,2]
[381989463,1756465839471,-190.572099,0.00033165,2]
[381989464,1756465839481,-500.0,0.00033242,7]
[381989465,1756465839490,-500.0,0.00033269,7]
[381989466,1756465839500,-500.0,0.000335,7]
[381989467,1756465839510,-500.0,0.00034111,7]
[381989468,1756465839519,-500.0,0.00034194,7]
[381989469,1756465839530,-425.57542551,0.00034194,7]
[381989470,1756465839539,-217.30324474,0.00034194,7]
[381989471,1756465839548,-232.6790651,0.00034194,7]
[381989472,1756465839557,-216.21406313,0.00034194,7]
[381989473,1756465839566,-353.83113941,0.00034242,2]
[381989474,1756465839577,-1413.9092331,0.00034242,2]
[381989475,1756465839586,-728.02280794,0.00034242,2]
[381989476,1756465839596,-154.0,0.000346,120]
[381989477,1756465839605,-500.0,0.00034638,7]
[381989478,1756465839615,-500.0,0.00034694,7]
[381989479,1756465839624,-500.0,0.00034825,7]
[381989480,1756465839634,-168.0,0.0003483,2]
[381989481,1756465839645,-500.0,0.00034855,7]
[381989482,1756465839655,-500.0,0.00034919,7]
[381989483,1756465839667,-467.95,0.0003498,3]
[381989484,1756465839676,-233.98,0.0003498,3]
[381989485,1756465839687,-200.0,0.000352,120]
[381989486,1756465839696,-834.18147,0.000352,120]
[381989487,1756465839706,-789.67605384,0.00035373,2]
[381989488,1756465839715,-701.95,0.00035384,3]
[381989489,1756465839725,-789.67605382,0.00035395,2]
[381989490,1756465839736,-1465.63037264,0.00035396,2]
[381989491,1756465839745,-789.67605382,0.00035416,2]
[381989492,1756465839755,-789.67605382,0.00035438,2]
[381989493,1756465839764,-789.67605382,0.00035459,2]
[381989494,1756465839773,-501.16424268,0.00035473,5]
[381989495,1756465839782,-500.0,0.00035473,2]
[381989496,1756465839791,-150.0,0.00035473,5]
[381989497,1756465839800,-187.30231734,0.00035473,5]
[381989498,1756465839809,-500.0,0.00035473,2]
[381989499,1756465839819,-500.0,0.00035473,5]
[381989500,1756465839828,-500.0,0.00035473,5]
[381989501,1756465839838,-212.73,0.00035475,10]
[381989502,1756465839847,-205.21,0.00035475,10]
[381989503,1756465839856,-371.45,0.00035475,10]
[381989504,1756465839867,-37050.96,0.00035475,7]
[381989505,1756465839877,-216.21406313,0.00035475,7]
[381989506,1756465839886,-156.29,0.00035481,14]
[381989507,1756465839895,-21740.00083867,0.00035486,3]
[381989508,1756465839928,-144643.77687133,0.00035486,3]
[381989509,1756465839938,-500.0,0.00035489,7]
[381989510,1756465839947,-500.0,0.00035489,7]
[381989511,1756465839957,-500.0,0.00035489,7]
[381989512,1756465839966,-574.49102453,0.00035489,7]
[381989513,1756465839975,-500.0,0.00035489,7]
[381989514,1756465839986,-500.0,0.00035489,7]
[381989515,1756465839995,-500.0,0.00035489,7]
[381989516,1756465840006,-500.0,0.00035489,7]
[381989517,1756465840015,-216.21406313,0.0003549,3]
[381989518,1756465840024,-249575.666564,0.00035496,3]
[381989519,1756465840034,-160.0,0.00035496,3]
[381989520,1756465840044,-1268.83,0.000355,14]
[381989521,1756465840053,-322.52,0.000355,7]
[381989522,1756465840062,-178.86,0.000355,7]
[381989523,1756465840071,-160.0,0.000355,3]
[381989524,1756465840080,-160.0,0.000355,3]
[381989525,1756465840090,-425.57542551,0.000355,3]
[381989526,1756465840099,-217.30324474,0.000355,3]
[381989527,1756465840108,-232.6790651,0.000355,3]
[381989528,1756465840118,-173.8094442,0.00035516,2]
[381989529,1756465840127,-597.0,0.00035559,2]
[381989530,1756465840136,-500.0,0.00035573,5]
[381989531,1756465840145,-500.0,0.00035573,5]
[381989532,1756465840155,-339.23308468,0.00035573,5]
[381989533,1756465840165,-501.40282483,0.00035573,5]
[381989534,1756465840174,-223.07154621,0.00035573,5]
[381989535,1756465840183,-500.0,0.00035573,5]
[381989536,1756465840192,-500.0,0.00035579,7]
[381989537,1756465840202,-480.0,0.00035616,10]
[381989538,1756465840211,-480.97824574,0.00035616,10]
[381989539,1756465840220,-480.0,0.00035616,10]
[381989541,1756465840229,-480.0,0.00035616,10]
[381989542,1756465840239,-480.0,0.00035616,10]
[381989543,1756465840248,-480.0,0.00035616,10]
[381989544,1756465840257,-480.0,0.00035616,10]
[381989545,1756465840267,-480.0,0.00035616,10]
[381989546,1756465840277,-480.0,0.00035616,10]
[381989548,1756465840287,-480.0,0.00035616,10]
[381989549,1756465840296,-480.0,0.00035616,10]
[381989550,1756465840306,-224.85682227,0.00035616,10]
[381989552,1756465840315,-480.0,0.00035616,10]
[381989554,1756465840325,-318.20119667,0.00035616,10]
[381989556,1756465840334,-480.0,0.00035616,10]
[381989558,1756465840344,-480.0,0.00035616,10]
[381989560,1756465840356,-480.0,0.00035616,10]
[381989562,1756465840366,-480.0,0.00035616,10]
[381989564,1756465840375,-480.0,0.00035616,10]
[381989566,1756465840384,-400.0,0.00035616,10]
[381989568,1756465840395,-480.0,0.00035616,10]
[381989570,1756465840404,-480.0,0.00035616,10]
[381989572,1756465840413,-480.0,0.00035616,10]
[381989574,1756465840423,-480.0,0.00035616,10]
[381989576,1756465840435,-480.0,0.00035616,10]
[381989578,1756465840444,-240.87019362,0.00035616,10]
[381989580,1756465840453,-480.0,0.00035616,10]
[381989582,1756465840462,-480.0,0.00035616,10]
[381989584,1756465840471,-480.0,0.00035616,10]
[381989586,1756465840480,-480.0,0.00035616,10]
[381989588,1756465840490,-481.85581537,0.00035616,10]
[381989590,1756465840499,-481.5950688,0.00035616,10]
[381989592,1756465840509,-480.0,0.00035616,10]
[381989594,1756465840518,-480.0,0.00035616,10]
[381989596,1756465840528,-480.0,0.00035616,10]
[381989598,1756465840538,-481.95103155,0.00035616,10]
[381989600,1756465840548,-480.0,0.00035616,10]
[381989602,1756465840557,-434.34059067,0.00035616,10]
[381989604,1756465840566,-481.40467018,0.00035616,10]
[381989606,1756465840576,-480.0,0.00035616,10]
[381989608,1756465840585,-480.0,0.00035616,10]
[381989610,1756465840595,-480.0,0.00035616,10]
[381989622,1756465840703,-215.73698574,0.00035616,10]
[381989624,1756465840713,-480.0,0.00035616,10]
[381989626,1756465840723,-480.0,0.00035616,10]
[381989628,1756465840732,-500.0,0.00035616,10]
[381989631,1756465840742,-480.0,0.00035616,10]
[381989634,1756465840751,-480.0,0.00035616,10]
[381989637,1756465840760,-281.56863862,0.00035616,10]
[381989639,1756465840770,-480.0,0.00035616,10]
[381989641,1756465840779,-480.0,0.00035616,10]
[381989643,1756465840789,-480.0,0.00035616,10]
[381989645,1756465840798,-480.0,0.00035616,10]
[381989648,1756465840807,-480.0,0.00035616,10]
[381989650,1756465840816,-480.0,0.00035616,10]
[381989652,1756465840826,-480.0,0.00035616,10]
[381989654,1756465840835,-480.0,0.00035616,10]
[381989656,1756465840845,-481.33782871,0.00035616,10]
[381989658,1756465840855,-480.0,0.00035616,10]
[381989660,1756465840864,-480.0,0.00035616,10]
[381989663,1756465840874,-480.0,0.00035616,10]
[381989665,1756465840883,-480.95212872,0.00035616,10]
[381989667,1756465840892,-480.0,0.00035616,10]
[381989669,1756465840902,-480.0,0.00035616,10]
[381989671,1756465840911,-480.0,0.00035616,10]
[381989673,1756465840921,-575.50853324,0.00035616,10]
[381989675,1756465840930,-480.50169768,0.00035616,10]
[381989677,1756465840939,-480.0,0.00035616,10]
[381989679,1756465840948,-480.0,0.00035616,10]
[381989681,1756465840957,-480.0,0.00035616,10]
[381989683,1756465840966,-480.0,0.00035616,10]
[381989685,1756465840975,-480.0,0.00035616,10]
[381989687,1756465840984,-480.0,0.00035616,10]
[381989689,1756465840994,-480.0,0.00035616,10]
[381989691,1756465841005,-480.0,0.00035616,10]
[381989693,1756465841015,-482.4246975,0.00035616,10]
[381989695,1756465841025,-480.0,0.00035616,10]
[381989697,1756465841035,-480.0,0.00035616,10]
[381989700,1756465841045,-480.0,0.00035616,10]
[381989702,1756465841055,-481.02882827,0.00035616,10]
[381989704,1756465841064,-480.0,0.00035616,10]
[381989706,1756465841073,-480.0,0.00035616,10]
[381989708,1756465841083,-480.0,0.00035616,10]
[381989710,1756465841092,-480.0,0.00035616,10]
[381989712,1756465841101,-480.0,0.00035616,10]
[381989714,1756465841111,-480.0,0.00035616,10]
[381989716,1756465841120,-480.0,0.00035616,10]
[381989718,1756465841130,-480.0,0.00035616,10]
[381989720,1756465841139,-374.8796452,0.00035616,10]
[381989722,1756465841147,-570.64,0.00035616,10]
[381989724,1756465841157,-480.0,0.00035616,10]
[381989726,1756465841166,-480.0,0.00035616,10]
[381989728,1756465841175,-480.0,0.00035616,10]
[381989730,1756465841185,-480.0,0.00035616,10]
[381989732,1756465841194,-480.0,0.00035616,10]
[381989734,1756465841203,-480.0,0.00035616,10]
[381989736,1756465841212,-480.0,0.00035616,10]
[381989738,1756465841221,-480.0,0.00035616,10]
[381989740,1756465841231,-480.0,0.00035616,10]
[381989742,1756465841240,-480.0,0.00035616,10]
[381989744,1756465841250,-480.0,0.00035616,10]
[381989746,1756465841259,-480.0,0.00035616,10]
[381989747,1756465841268,-480.0,0.00035616,10]
[381989748,1756465841277,-480.0,0.00035616,10]
[381989750,1756465841286,-480.0,0.00035616,10]
[381989752,1756465841295,-480.0,0.00035616,10]
[381989753,1756465841305,-480.0,0.00035616,10]
[381989755,1756465841314,-480.0,0.00035616,10]
[381989757,1756465841324,-480.71512697,0.00035616,10]
[381989759,1756465841334,-480.0,0.00035616,10]
[381989761,1756465841344,-480.0,0.00035616,10]
[381989764,1756465841358,-480.0,0.00035616,10]
[381989766,1756465841367,-480.0,0.00035616,10]
[381989768,1756465841376,-480.0,0.00035616,10]
[381989771,1756465841387,-480.0,0.00035616,10]
[381989774,1756465841397,-480.0,0.00035616,10]
[381989777,1756465841406,-480.0,0.00035616,10]
[381989779,1756465841416,-480.0,0.00035616,10]
[381989781,1756465841427,-480.0,0.00035616,10]
[381989783,1756465841437,-480.0,0.00035616,7]
[381989784,1756465841447,-480.0,0.00035616,10]
[381989786,1756465841456,-480.0,0.00035616,10]
[381989788,1756465841466,-480.0,0.00035616,10]
[381989790,1756465841474,-482.52706861,0.00035616,10]
[381989792,1756465841484,-480.0,0.00035616,10]
[381989794,1756465841494,-481.52177546,0.00035616,10]
[381989796,1756465841503,-480.0,0.00035616,10]
[381989798,1756465841513,-480.0,0.00035616,10]
[381989800,1756465841522,-480.0,0.00035616,10]
[381989802,1756465841532,-480.0,0.00035616,10]
[381989804,1756465841541,-472.87557471,0.00035616,10]
[381989806,1756465841551,-480.0,0.00035616,10]
[381989808,1756465841561,-480.0,0.00035616,10]
[381989810,1756465841570,-480.0,0.00035616,10]
[381989812,1756465841580,-480.0,0.00035616,10]
[381989814,1756465841589,-480.0,0.00035616,10]
[381989816,1756465841599,-480.0,0.00035616,10]
[381989818,1756465841608,-480.0,0.00035616,10]
[381989819,1756465841617,-480.0,0.00035616,10]
[381989820,1756465841627,-480.0,0.00035616,10]
[381989821,1756465841637,-325.27917315,0.00035616,10]
[381989822,1756465841646,-480.0,0.00035616,10]
[381989823,1756465841655,-480.0,0.00035616,10]
[381989824,1756465841665,-457.36039685,0.00035616,10]
[381989825,1756465841674,-481.73731652,0.00035616,10]
[381989826,1756465841683,-480.0,0.00035616,10]
[381989827,1756465841693,-480.0,0.00035616,10]
[381989828,1756465841702,-422.16745125,0.00035616,10]
[381989829,1756465841719,-57.83254875,0.00035616,10]
[381989830,1756465841728,-480.0,0.00035616,10]
[381989831,1756465841737,-497.33316676,0.00035616,10]
[381989832,1756465841747,-480.0,0.00035616,10]
[381989833,1756465841756,-480.0,0.00035616,10]
[381989834,1756465841766,-480.0,0.00035616,10]
[381989835,1756465841775,-480.0,0.00035616,10]
[381989836,1756465841785,-480.0,0.00035616,10]
[381989837,1756465841794,-482.2009961,0.00035616,10]
[381989838,1756465841804,-480.0,0.00035616,10]
[381989839,1756465841813,-480.0,0.00035616,10]
[381989840,1756465841823,-480.0,0.00035616,10]
[381989841,1756465841832,-480.0,0.00035616,10]
[381989842,1756465841841,-482.24392658,0.00035616,10]
[381989843,1756465841850,-191.25611403,0.00035616,10]
[381989844,1756465841929,-2026.40546775,0.00030418,120]
[381989845,1756465841939,-288.74388597,0.00035616,10]
[381989846,1756465841948,-480.0,0.00035616,10]
[381989847,1756465841958,-480.0,0.00035616,10]
[381989848,1756465841967,-313.86348003,0.00035616,10]
[381989849,1756465841979,-168.19440723,0.00035616,10]
[381989850,1756465841989,-482.81567257,0.00035616,10]
[381989851,1756465841999,-480.0,0.00035616,10]